Cogmind - Beta 14 @@@ ROGUE MODE // 2024.08.15 @ 02:46:47 Player: TheProctologist Result: Self-destructed Performance ------------- Evolutions (1) 500 Regions Visited (2) 400 Robots Destroyed (21) 105 Value Destroyed (511) 511 Prototype IDs (0) 0 Alien Tech Used (0) 0 Bonus (0) 0 TOTAL SCORE: 1516 Bonus ------- None Cogmind --------- Core Integrity 332/400 Matter 204/300 Energy 181/250 System Corruption 8% Temperature Warm (103) Movement Treading (160) Location -9/Materials Parts ------- > --- POWER (1) -------- Ion Engine > --- PROPULSION (2) --- Improved Treads > --- UTILITY (3) ------ Small Storage Unit > --- WEAPON (3) ------- Light EM Pulse Cannon Mini Grenade Launcher > --- INVENTORY (8) ---- Ion Engine Improved Ion Engine Improved Treads Improved Treads Beam Rifle Light EM Pulse Cannon Shotgun Maul Peak State ------------ > --- POWER ------------ Ion Engine > --- PROPULSION ------- Improved Treads Improved Treads > --- UTILITY ---------- Small Storage Unit Improved Terrain Scanner > --- WEAPON ----------- Light EM Pulse Cannon Light EM Pulse Cannon Maul > --- INVENTORY -------- Ion Engine Light Ion Engine Light Ion Engine Improved Treads Improved Treads Assault Rifle Grenade Launcher Grenade Launcher [Rating: 16] Favorites ----------- Power Ion Engine Engine Ion Engine Propulsion Improved Treads Treads Improved Treads Leg Aluminum Leg Utility Small Storage Unit Device Improved Terrain Scanner Storage Small Storage Unit Weapon Light EM Pulse Cannon Energy Gun Medium Laser Energy Cannon Light EM Pulse Cannon Ballistic Gun Assault Rifle Launcher Grenade Launcher Impact Weapon Maul Build | -11 -10 -9 ------- Run | Yrd Mat Mat Slots Evolved 2 | . . 2 Power . | . . . Propulsion . | . . . Utility 1 | . . 1 Weapon 1 | . . 1 Parts Attached 20 | 8 6 6 Power 1 | 1 . . Engine 1 | 1 . . Core . | . . . Reactor . | . . . Propulsion 6 | 3 3 . Treads 5 | 2 3 . Leg 1 | 1 . . Wheel . | . . . Hover . | . . . Flight . | . . . Utility 2 | 2 . . Device 1 | 1 . . Storage 1 | 1 . . Processor . | . . . Hackware . | . . . Protection . | . . . Artifact . | . . . Weapon 11 | 2 3 6 Energy Gun 3 | 1 1 1 Energy Cannon 2 | . . 2 Ballistic Gun 1 | 1 . . Ballistic Cannon . | . . . Launcher 3 | . 2 1 Special Weapon . | . . . Impact Weapon 2 | . . 2 Slashing Weapon . | . . . Piercing Weapon . | . . . Special Melee Weapon . | . . . Unidentified Prototypes . | . . . Parts Lost 3 | . . 3 Power . | . . . Propulsion 1 | . . 1 Utility 1 | . . 1 Weapon 1 | . . 1 Highest Loss Streak 3 | . . 3 To Critical Strikes . | . . . Average Slot Usage (%) 93 | . 100 88 Engine 12 | . 14 11 Treads 24 | . 28 22 Device 12 | . 14 11 Storage 12 | . 14 11 Energy Gun 3 | . 5 1 Energy Cannon 8 | . . 15 Ballistic Gun 7 | . 14 1 Launcher 6 | . 8 6 Impact Weapon 4 | . . 8 Peak Build Rating 16 | 9 12 16 Average Rating 11 | 6 9 15 On Entrance 7 | . 9 12 Naked Turns . | . . . Heaviest Build 22 | 15 16 22 Greatest Support 46 | 20 46 46 Greatest Overweight (x) 4 | 4 . . Average Overweight (x) . | . . . Largest Inventory Capacity 8 | 8 8 8 Average Capacity 7 | 7 8 8 Most Carried 8 | 4 8 8 Average Carried 6 | 2 6 7 Final Capacity 8 | 8 8 8 Final Carried 8 | 3 8 8 Class Distribution -------------------- 93% | Mutant 6% | Skirmisher Dominant Class ---------------- Mutant | -10/Materials Mutant | -9/Materials Resources | -11 -10 -9 ----------- Run | Yrd Mat Mat Matter Collected 464 | 301 85 78 Remotely . | . . . Salvage Created 607 | 64 309 234 Parts 38 | 8 17 13 Haulers Intercepted 1 | . 1 . Recyclers Shooed . | . . . Parts Field Recycled . | . . . Retrieved Matter . | . . . Parts Self-Destructed . | . . . Prevented . | . . . Kills | -11 -10 -9 ------- Run | Yrd Mat Mat Combat Hostiles Destroyed 15 | . 8 7 Melee 1 | . . 1 Guns 5 | . 4 1 Cannons 3 | . . 3 AOE 5 | . 4 1 Classes Destroyed 7 | 2 4 1 Worker 1 | 1 . . Tunneler 3 | 2 . 1 Hauler 1 | . 1 . Watcher 1 | . 1 . Swarmer 3 | . 3 . Grunt 11 | . 5 6 Duelist 1 | . . 1 Best Kill Streak 7 | 1 7 3 Combat Bots Only 3 | . 3 3 Max Kills in Single Turn 3 | 1 3 2 Gunslinging . | . . . Exploded 3 | . 3 1 Melee 1 | . . 1 Uniques/NPCs Destroyed . | . . . Combat | -11 -10 -9 -------- Run | Yrd Mat Mat Hostile Shots Fired 47 | . 29 18 Missed 13 | . 7 6 Damage Taken 710 | . 202 508 Core 121 | . 53 68 Absorbed by Shields . | . . . Core Remaining (%) 89 | 100 78 . Volleys Fired 36 | 7 18 11 Largest 3 | 2 2 3 Hottest 142 | 70 70 142 Shots Fired 80 | 14 36 30 Gun 55 | 14 34 7 Cannon 15 | . . 15 Launcher 10 | . 2 8 Special . | . . . Kinetic 25 | 7 18 . Thermal 30 | 7 16 7 Explosive 10 | . 2 8 Electromagnetic 15 | . . 15 Robot Hit Streak 11 | 6 6 11 Robot Miss Streak 3 | 1 3 1 Penetration Max . | . . . Secondary Targets . | . . . Shots Hit Robots 53 | 10 25 18 Core Hits 27 | 3 16 8 Critical Kills 1 | . . 1 Critical Parts Destroyed 1 | . . 1 Critical Strikes 3 | 1 . 2 Burn 1 | 1 . . Smash 2 | . . 2 Melee Attacks 7 | . . 7 Impact 7 | . . 7 Slashing . | . . . Piercing . | . . . Sneak Attacks 2 | . . 2 Combat Hostiles . | . . . Follow-up Attacks . | . . . Damage Inflicted 1476 | 122 522 832 Guns 466 | 122 300 44 Cannons 190 | . . 190 Explosions 489 | . 222 267 Melee 331 | . . 331 Ramming . | . . . Kinetic 208 | 34 174 . Thermal 258 | 88 126 44 Explosive 489 | . 222 267 Electromagnetic 190 | . . 190 Impact 331 | . . 331 Slashing . | . . . Piercing . | . . . Highest Corruption . | . . . Average Corruption . | . . . Corruption Purged . | . . . Corruption Blocked . | . . . Overload Shots . | . . . Overflow Damage 142 | . 3 139 Projectiles . | . . . Explosions 3 | . 3 . Melee 139 | . . 139 Knockbacks 2 | . . 2 Impact 2 | . . 2 Kinetic . | . . . Secondary . | . . . Self-Inflicted Damage 37 | . . 37 Shots 1 | . . 1 Rammed . | . . . Targets Rammed . | . . . Kicked . | . . . Crushed . | . . . Highest Temperature 204 | 36 91 204 Average Temperature 53 | 15 39 80 Received Heat Transfer 138 | . 66 72 Siege Activations . | . . . Robots Corrupted 2 | . . 2 Combat Hostiles 1 | . . 1 Parts Fried 1 | . . 1 Impact Corruptions 5 | . . 5 Robots Melted . | . . . Combat Hostiles . | . . . Parts Melted 1 | . . 1 Heat Transferred 814 | 333 370 111 Parts Sabotaged . | . . . Parts Stolen . | . . . Parts Stripped . | . . . Power Chain Reactions . | . . . Alert | -11 -10 -9 ------- Run | Yrd Mat Mat Peak Influence 352 | 15 316 352 Initial 133 | . 9 133 Average 175 | 3 188 227 Maximum Alert Level 1 | . 1 1 Low Security (%) 50 | 100 48 35 Level 1 49 | . 51 64 Level 2 . | . . . Level 3 . | . . . Level 4 . | . . . Level 5 . | . . . High Security . | . . . Max Security . | . . . Squads Dispatched 4 | . 2 2 Investigation 1 | . . 1 Extermination . | . . . Reinforcement 3 | . 2 1 Assault . | . . . Garrison . | . . . Intercept . | . . . Searches Triggered . | . . . Construction Impeded . | . . . Haulers Reinforced . | . . . Active Scanning Responses . | . . . Cargo Convoy Interrupts . | . . . Stealth | -11 -10 -9 --------- Run | Yrd Mat Mat Distress Signals 2 | . 2 . Communications Jammed . | . . . Distress Signals . | . . . Times Spotted 24 | . 13 11 Peak Tracking Total 4 | . 4 3 Tactical Retreats 2 | . 1 1 Traps | -11 -10 -9 ------- Run | Yrd Mat Mat Traps Triggered . | . . . Indirectly . | . . . Trap Hack Attempts . | . . . Triggered . | . . . Disarmed . | . . . Reprogrammed . | . . . Reused . | . . . Traps Extracted . | . . . Installed . | . . . Triggered 1 | . . 1 Machines | -11 -10 -9 ---------- Run | Yrd Mat Mat Machines Disabled 2 | . . 2 Max in Single Turn 1 | . . 1 Machines Repaired . | . . . Machines Dismantled . | . . . Machines Sabotaged . | . . . Overloaded Fab Kills . | . . . Hacking | -11 -10 -9 --------- Run | Yrd Mat Mat Machines Accessed 3 | . 2 1 Terminals 3 | . 2 1 Fabricators . | . . . Repair Stations . | . . . Recycling Units . | . . . Scanalyzers . | . . . Garrison Access . | . . . Total Hacks 6 | . 5 1 Successful 2 | . 1 1 Failed 4 | . 4 . Catastrophic 2 | . 2 . Database Lockouts . | . . . Manual 2 | . 2 . Terminals 6 | . 5 1 Fabricators . | . . . Repair Stations . | . . . Recycling Units . | . . . Scanalyzers . | . . . Garrison Access . | . . . Terminal Hacks 2 | . 1 1 Branch Access Points 1 | . . 1 Locate Traps 1 | . 1 . Fabricator Hacks . | . . . Repair Station Hacks . | . . . Recycling Unit Hacks . | . . . Scanalyzer . | . . . Garrison Access Hacks . | . . . Unauthorized Hacks . | . . . Terminals . | . . . Fabricators . | . . . Repair Stations . | . . . Recycling Units . | . . . Scanalyzers . | . . . Garrison Access . | . . . Data Cores Recovered . | . . . Used . | . . . Hacking Detections 2 | . 2 . Full Trace Events 1 | . 1 . Feedback Events . | . . . Feedback Blocked . | . . . Robot Schematics Acquired . | . . . Robots Built . | . . . Authchips . | . . . Time . | . . . Total Robot Build Rating . | . . . Part Schematics Acquired . | . . . Parts Built . | . . . Authchips . | . . . Time . | . . . Total Part Build Rating . | . . . Parts Repaired . | . . . Time . | . . . Parts Recycled . | . . . Recycled Matter . | . . . Retrieved Matter . | . . . Retrieved Components . | . . . Parts Scanalyzed . | . . . Part Schematics Acquired . | . . . Parts Damaged . | . . . Bothacking | -11 -10 -9 ------------ Run | Yrd Mat Mat Used RIF Installer . | . . . Robots Hacked . | . . . Non-combat . | . . . Combat . | . . . Robot Hacks Applied . | . . . Relay Couplers Released . | . . . Fabnet Peak Effective % . | . . . Robots Rewired . | . . . Allies Hacked . | . . . Hacks Repelled . | . . . Allies | -11 -10 -9 -------- Run | Yrd Mat Mat Total Allies . | . . . Largest Group . | . . . Highest-Rated Group . | . . . Highest-Rated Ally . | . . . Total Orders . | . . . Ally Attacks . | . . . Total Damage . | . . . Kills . | . . . Allies Corrupted . | . . . Allies Melted . | . . . Intel | -11 -10 -9 ------- Run | Yrd Mat Mat Robot Analysis Total . | . . . Derelict Logs Recovered . | . . . Drone Launches . | . . . Drone Recoveries . | . . . Exploration | -11 -10 -9 ------------- Run | Yrd Mat Mat Turns Passed 1067 | 177 399 491 Spaces Moved 540 | 81 205 254 Core 19 | 19 . . Treads 521 | 62 205 254 Legs . | . . . Wheels . | . . . Hover . | . . . Flight . | . . . Fastest Speed 50 | 50 160 160 Average Speed 161 | 173 160 160 Slowest Speed 250 | 250 160 160 Overloaded Moves . | . . . Propulsion Burnouts . | . . . Robots Hopped . | . . . Cave-ins Triggered 1 | . . 1 Exploration Rate (%) 27 | 5 49 28 Regions Visited 2 Branch Regions . Pre-discovered Areas . | . . . Known Exits Taken . | . . . Unknown Exits Taken 2 | 1 1 . Scrap Searched . | . . . Spaces Dug 30 | . . 30 Terrain Destroyed 111 | . 19 92 Melee . | . . . Projectile . | . . . AOE 111 | . 19 92 Terrain Rammed . | . . . Walls Destroyed . | . . . Machines Disabled . | . . . Actions | -11 -10 -9 --------- Run | Yrd Mat Mat Total 644 | 101 242 301 Wait 11 | . . 11 Move 538 | 80 204 254 Hop . | . . . Pick Up 17 | 4 8 5 Fast Attach 9 | 7 . 2 Attach 3 | 1 1 1 Detach 3 | 1 1 1 Swap 8 | . 5 3 Drop 12 | 1 5 6 Fire 36 | 7 18 11 Melee 7 | . . 7 Ram . | . . . Kick . | . . . Crush . | . . . Escape Stasis . | . . . Rewire . | . . . Trap . | . . . Miscellaneous . | . . . Route ------- -11/Scrapyard -10/Materials -9/Materials (discovered 3 exits: Min / *Sto x2) History --------- Turn | Location | Event 25 | -11/Scrapyard | Discovered new exit (range 16) 178 | -11/Scrapyard | Entered Materials 302 | -10/Materials | Build established: Mutant 431 | -10/Materials | Discovered new exit (range 10) 577 | -10/Materials | Entered another Materials area 577 | -9/Materials | Evolved 2 slots: Utility x1, Weapon x1 734 | -9/Materials | Discovered new exit (range 8) 978 | -9/Materials | Identified exit to Mines 978 | -9/Materials | Identified exit to Storage 1068 | -9/Materials | Crushed by falling debris 1068 | -9/Materials | Self-destructed Last Messages --------------- 01006_ U-05 Engineer lays Concrete. 01013_ Ion Engine melted. 01013_ G-34 Mercenary destroyed. 01016_ U-05 Engineer lays Concrete. 01040_ Material Compactor disabled. 01053_ The unstable cave ceiling collapses. 01055_ G-34 Mercenary destroyed. 01055_ Door malfunctions. 01056_ The unstable cave ceiling collapses. 01061_ U-05 Engineer lays Concrete. 01065_ The unstable cave ceiling collapses. 01065_ U-05 Engineer lays Concrete. 01068_ The unstable cave ceiling collapses. 01068_ Crushed by falling debris. 01068_ Imp. Terrain Scanner destroyed. 01068_ System corrupted by crushing effect (+4). 01068_ Imp. Treads destroyed. 01068_ System corrupted by crushing effect (+1). 01068_ Beam Rifle destroyed. 01068_ System corrupted by crushing effect (+3). Map ----- +----------------------------------------------------+ | ?????#???????????????????????????????????????????? | | ?????????????????????????????????????????????????? | | ?????????????????????????????????????????????????? | | ?????????????????????????????????????????????????? | | ?????????????????????????????????????????????????? | | ?????????????????????????????????????????????????? | | ?????????????????????????????????????????????????? | | ?????????????????????????????????????????????????? | | ?????????????????????????????????????????????????? | | ####???????????????????????+?????????????????????? | | ?????????????????????? ???????????????????? | | ????????????????????? ??????????????????? | | ???????????????????? ?? ??????????????? | | ########????#?#???#????##? ? ?????????????? | | ! #??????????????? ? ? ??????????????? | | = #??????????????"" ? ? ??????????????? | | #???#??????????T" ? ? ??????????????? | | ] #??????????????"" ? ???????????????? | | ##+###+#????? ???????? # ? ????????????????? | | ?# #??????????#???? ?????????????????? | | ?# #????#??????????# # T#??????????????????? | | ?# #?????????????### #????????? ?????????? | | ## #?????????????# #???????#???????????? | | ## #??? ?? ??#???# ##########???????????? | | #???"????###### ## """ """ #???????????? | | #????????# @ """ """ #???????????? | | #?????"??# """ """ """ #? ?????????? | | #??????? # """" # #???????????? | | # #??"?????# """" ## #???????????? | | # #??????"?# """"" ## #??? ???????? | | # #???"????# """ ## #???????????? | | # #????????# ## #???????????? | | # #####+##?# =! #####+######???????????? | | # ### ####### ######### ?????? | | # % ???? | | # g T #??????????? | | # """" !!! a [[[ ### ##+#+#??????????? | | # """" !!! [[ #?## ##???????????????? | | # """" !! u [[ #### #?? ?????????????? | | #??# #????????????????? | | #??# #????????????????? | | ################## #####??# #????????????????? | | #?????? ?????#??## = ##??????# ????????????????? | | ??????????######## ?????? # ???????????????? | | ??????????# """ """% ??? ????# ???????????????? | | ???? ?????# """ """ #??? ????# ???????????????? | | ??? ?? ???# """ """ # ????? ?? % ??????????????? | | #? ????" ?# #??? ????? ??????????????? | | ??????????# #? ??????? ??????????????? | | ???? ?????# #?????????# ##???????????????? | +----------------------------------------------------+ Best States ------------- Heat Dissipation 28 Energy Generation 10 Energy Capacity 250 Matter Stores 300 Matter Capacity 300 Sight Range 16 Terrain Scan Range 16 Terrain Scan Density 10 Evasion (%) 40 Recoil Reduction 2 Item Schematics ----------------- None Robot Schematics ------------------ None Fabricated ------------ Nothing Alien Tech Used ----------------- None Achievements -------------- None Challenges ------------ None Game ------ Seed OpticalInsulationWell Manual? 0 Play Time 00:23:11 Cumulative 24.6 hours Start 2024.08.14 @ 23:32:41 End 2024.08.15 @ 02:46:47 Sessions 1 Manual Loads 0 Difficulty Rogue Special Mode None Game No. 33 Rogue 33 Adventurer 0 Explorer 0 Win Type - Total 0 Types 0/0/0/0/0/0/0/0/0 Lore% 8 Gallery% 19 Achievement% 16 Wizard Run 0 Options --------- Layout 1 ASCII 0 Keyboard 0 Movement Numpad Keybinds 0 Fullscreen 1 Font 32/SmallcapsGlow Map View 50x40 Zoom Use 10% Tactical HUD 1 Map Filters NONE Filters NONE Steam 1 RUN: 82917e31-1050-40ed-95db-4a0a9db9c15b